fUSD/lending_fUSD_20251105
["ID","MTS","AMOUNT","RATE_DAILY","PERIOD"]
[393209125,1762321014215,507.61057282,0.00014999,2]
[393209128,1762321039835,500.0,0.00013001,2]
[393209129,1762321039912,500.0,0.00013001,2]
[393209130,1762321040224,500.0,0.00013001,2]
[393209131,1762321040266,500.0,0.00013001,2]
[393209132,1762321040549,500.0,0.00013001,2]
[393209133,1762321040628,500.0,0.00013001,2]
[393209134,1762321040897,500.0,0.00013001,2]
[393209135,1762321041017,500.0,0.00013001,2]
[393209136,1762321041227,500.0,0.00013001,2]
[393209137,1762321041337,500.0,0.00013001,2]
[393209138,1762321041637,500.0,0.00013001,2]
[393209139,1762321041684,500.0,0.00013001,2]
[393209140,1762321041995,500.0,0.00013001,2]
[393209141,1762321042032,13.94112023,0.00013001,2]
[393209142,1762321042056,486.05887977,0.00013001,2]
[393209143,1762321042334,500.0,0.00013,2]
[393209144,1762321042402,500.0,0.00013001,2]
[393209145,1762321042661,500.0,0.00013,2]
[393209146,1762321042917,500.0,0.00013001,2]
[393209147,1762321042994,500.0,0.00013,2]
[393209148,1762321043242,500.0,0.00013001,2]
[393209149,1762321043347,500.0,0.00013,2]
[393209150,1762321043627,500.0,0.00013001,2]
[393209151,1762321043702,500.0,0.00013,2]
[393209152,1762321043971,500.0,0.00013001,2]
[393209153,1762321044223,500.0,0.00013,2]
[393209154,1762321044396,500.0,0.00013001,2]
[393209155,1762321044630,500.0,0.00013001,2]
[393209156,1762321044976,500.0,0.00013,2]
[393209157,1762321045272,500.0,0.00013,2]
[393209158,1762321045633,500.0,0.00013,2]
[393209159,1762321045974,500.0,0.00013,2]
[393209160,1762321046342,500.0,0.00013,2]
[393209161,1762321046729,500.0,0.00013,2]
[393209162,1762321047034,13.95112023,0.00013,2]
[393209163,1762321047056,486.04887977,0.00013,2]
[393209164,1762321047356,500.0,0.00013,2]
[393209165,1762321047700,500.0,0.00013,2]
[393209166,1762321048565,500.0,0.00013,2]
[393209167,1762321048912,500.0,0.00013,2]
[393209168,1762321049314,500.0,0.00013,2]
[393209169,1762321049660,879.81373557,0.00013,2]
[393209176,1762321125959,500.0,0.00014999,2]
[393209177,1762321126235,378.78736526,0.00014999,2]
[393209179,1762321146739,532.85307949,0.00014999,2]
[393209180,1762321155018,500.0,0.00014999,2]
[393209181,1762321155546,500.0,0.00014999,2]
[393209190,1762321193581,260.0,0.0003,120]
[393209191,1762321208131,300.0,0.0003,120]
[393209192,1762321229965,151.0,0.00014999,2]
[393209193,1762321230243,157.22615876,0.00014999,2]
[393209194,1762321245173,500.0,0.00014999,2]
[393209195,1762321245272,500.0,0.00014999,2]
[393209196,1762321257074,500.0,0.00014999,2]
[393209197,1762321257336,611.79897419,0.00014999,2]
[393209620,1762321531578,151.0,0.00014999,2]
[393209621,1762321533252,158.41726602,0.00014999,2]
[393209622,1762321534461,151.0,0.00014999,2]
[393209831,1762321614578,150.0,0.00026611,120]
[393209841,1762321782246,5138.24,0.00012639,2]
[393209842,1762321782458,4861.77,0.00013278,2]
[393209843,1762321782482,276.47,0.00013278,2]
[393209844,1762321782660,5138.24,0.00013917,2]
[393209845,1762321782872,4585.3,0.00014556,2]
[393209846,1762321782896,552.94,0.00014556,2]
[393209857,1762321831230,151.0,0.00014999,2]
[393209858,1762321831266,151.0,0.00014999,2]
[393209877,1762321831858,-869.49440436,0.00015195,2]
[393209878,1762321831869,-4268.74559564,0.00015195,2]
[393209879,1762321831878,-250.0,0.00015514,2]
[393209880,1762321831887,-300.0,0.00015833,2]
[393209881,1762321831896,-300.0,0.00015833,2]
[393209882,1762321831905,-1200.0,0.00015833,2]
[393209883,1762321831914,-5138.24,0.00015834,2]
[393209884,1762321831923,-181.0,0.00016,2]
[393209885,1762321831932,-5138.24,0.00016474,2]
[393209886,1762321831941,-196.13,0.00016712,2]
[393209887,1762321831950,-155.5539763,0.00016715,2]
[393209888,1762321831960,-250.0,0.00016715,2]
[393209889,1762321831969,-5138.24,0.00017113,2]
[393209890,1762321831978,-300.0,0.00017314,2]
[393209891,1762321831990,-1680.0,0.00017401,2]
[393209892,1762321831999,-629.58,0.00017486,2]
[393209893,1762321832009,-157.31919081,0.000175,2]
[393209894,1762321832018,-195.0,0.000176,2]
[393209895,1762321832028,-250.0,0.000176,2]
[393209896,1762321832038,-5138.24,0.00017752,2]
[393209897,1762321832047,-5138.24,0.00018391,2]
[393209898,1762321832056,-4568.36024919,0.0001903,2]
[393209899,1762321832067,-569.87975081,0.0001903,2]
[393209900,1762321832077,-671.0,0.00019124,2]
[393209901,1762321832086,-5138.24,0.00019669,2]
[393209902,1762321832098,-1334.74,0.00019969,2]
[393209903,1762321832107,-1200.0,0.00019996,2]
[393209904,1762321832117,-300.0,0.00019996,2]
[393209905,1762321832126,-300.0,0.00019996,2]
[393209906,1762321832135,-529.66684081,0.00019999,2]
[393209907,1762321832144,-500.0,0.00019999,2]
[393209908,1762321832154,-532.10925199,0.00019999,2]
[393209909,1762321832163,-500.0,0.00019999,2]
[393209910,1762321832172,-500.0,0.00019999,2]
[393209911,1762321832181,-150.0,0.00020186,2]
[393209912,1762321832191,-440.04,0.00020187,2]
[393209913,1762321832200,-1586.12415639,0.00020187,2]
[393209914,1762321832212,-3986.98584361,0.00020187,2]
[393209915,1762321832221,-291.24065639,0.00020187,2]
[393209916,1762321832256,151.0,0.00014999,2]
[393209917,1762321832269,-578.59140228,0.00020187,2]
[393209918,1762321832280,-34.77794133,0.00020187,2]
[393209919,1762321832289,-999.99,0.00020187,2]
[393209920,1762321832299,-150.99,0.00020187,2]
[393209921,1762321832308,-374.99,0.00020187,2]
[393209922,1762321832317,-1556.30588345,0.00020187,2]
[393209923,1762321832328,-8443.68411655,0.00020187,2]
[393209925,1762321832337,-1520.88,0.00020187,2]
[393209926,1762321832346,-299.99,0.00020187,7]
[393209929,1762321832355,-3855.14,0.00020187,2]
[393209931,1762321832364,-306.97,0.00020187,2]
[393209933,1762321832374,-709.19,0.00020187,2]
[393209935,1762321832383,-3781.65,0.00020187,2]
[393209937,1762321832391,-5138.24,0.00020308,2]
[393209939,1762321832400,-5138.24,0.00020947,2]
[393209941,1762321832409,-500.0,0.00021333,2]
[393209943,1762321832418,-5138.24,0.00021587,2]
[393209945,1762321832428,-530.0,0.00021774,2]
[393209947,1762321832437,-1000.0,0.00021881,2]
[393209949,1762321832446,-500.0,0.000222,2]
[393209951,1762321832456,-500.0,0.000222,2]
[393209953,1762321832465,-504.83378329,0.000222,2]
[393209955,1762321832474,-563.44520848,0.000222,2]
[393209957,1762321832483,-500.0,0.000222,2]
[393209959,1762321832493,-5138.24,0.00022226,2]
[393209961,1762321832503,-500.56206736,0.00022378,2]
[393209963,1762321832512,-500.0,0.00022378,2]
[393209965,1762321832522,-1000.0,0.00022429,2]
[393209967,1762321832531,-500.0,0.00022486,2]
[393209969,1762321832540,-500.0,0.00022486,2]
[393209971,1762321832549,-496.58755335,0.00022486,2]
[393209973,1762321832558,-174.97082545,0.000225,2]
[393209975,1762321832567,-1000.0,0.00022748,2]
[393209976,1762321832576,-530.98935184,0.00022748,2]
[393209978,1762321832586,-5138.24,0.00022865,2]
[393209980,1762321832595,-1000.0,0.00022926,2]
[393209982,1762321832604,-500.0,0.00023296,2]
[393209984,1762321832613,-1000.0,0.00023474,2]
[393209985,1762321832622,-5138.24,0.00023504,2]
[393209986,1762321832631,-151.0,0.00023685,2]
[393209987,1762321832641,-151.0,0.00023685,2]
[393209988,1762321832650,-151.0,0.00023685,2]
[393209989,1762321832660,-151.0,0.00023685,2]
[393209990,1762321832669,-151.0,0.00023685,2]
[393209991,1762321832679,-151.0,0.00023685,2]
[393209992,1762321832689,-151.0,0.00023685,2]
[393209993,1762321832698,-151.0,0.00023685,2]
[393209994,1762321832707,-151.0,0.00023685,2]
[393209995,1762321832717,-151.0,0.00023685,2]
[393209996,1762321832726,-151.0,0.00023685,2]
[393209997,1762321832735,-151.0,0.00023685,2]
[393209998,1762321832745,-151.0,0.00023685,2]
[393209999,1762321832754,-151.0,0.00023685,2]
[393210000,1762321832765,-151.0,0.00023685,2]
[393210001,1762321832774,-151.0,0.00023685,2]
[393210002,1762321832783,-151.0,0.00023685,2]
[393210003,1762321832792,-151.0,0.00023685,2]
[393210004,1762321832801,-151.0,0.00023685,2]
[393210005,1762321832811,-151.0,0.00023685,2]
[393210006,1762321832821,-151.0,0.00023685,2]
[393210007,1762321832831,-151.0,0.00023685,2]
[393210008,1762321832839,-151.0,0.00023685,2]
[393210009,1762321832851,-151.0,0.00023685,2]
[393210010,1762321832861,-151.0,0.00023685,2]
[393210011,1762321832870,-151.0,0.00023685,2]
[393210012,1762321832881,-151.0,0.00023685,2]
[393210013,1762321832890,-151.0,0.00023685,2]
[393210014,1762321832899,-151.0,0.00023685,2]
[393210015,1762321832908,-151.0,0.00023685,2]
[393210016,1762321832917,-151.0,0.00023685,2]
[393210017,1762321832927,-151.0,0.00023685,2]
[393210018,1762321832936,-151.0,0.00023685,2]
[393210019,1762321832945,-151.0,0.00023685,2]
[393210020,1762321832953,-151.0,0.00023685,2]
[393210021,1762321832962,-151.0,0.00023685,2]
[393210022,1762321832971,-151.0,0.00023685,2]
[393210023,1762321832980,-151.0,0.00023685,2]
[393210024,1762321832990,-151.0,0.00023685,2]
[393210025,1762321832999,-151.0,0.00023685,2]
[393210026,1762321833008,-157.31919081,0.00023838,2]
[393210027,1762321833018,-500.0,0.00024133,2]
[393210028,1762321833026,-640.1517392,0.00024133,2]
[393210029,1762321833037,-5138.24,0.00024143,2]
[393210030,1762321833046,-415.21624887,0.00024229,2]
[393210031,1762321833054,-5138.24,0.00024782,2]
[393210032,1762321833065,-500.0,0.00024799,2]
[393210033,1762321833074,-250.0,0.00024799,2]
[393210034,1762321833083,-500.0,0.00024899,2]
[393210035,1762321833092,-500.0,0.00024932,2]
[393210036,1762321833101,-500.0,0.00024932,2]
[393210037,1762321833110,-500.0,0.00024932,2]
[393210038,1762321833119,-500.0,0.00024932,2]
[393210039,1762321833128,-1099.96,0.00025,2]
[393210040,1762321833138,-500.0,0.00025275,2]
[393210041,1762321833147,-1099.96,0.000255,2]
[393210042,1762321833155,-1283.4,0.00025764,2]
[393210043,1762321833164,-500.0,0.00025823,2]
[393210044,1762321833174,-477.76462643,0.0002599,2]
[393210045,1762321833183,-1099.96,0.00026,30]
[393210046,1762321833192,-1283.4,0.00026038,2]
[393210047,1762321833201,-1283.4,0.00026312,2]
[393210048,1762321833210,-1283.4,0.00026585,2]
[393210049,1762321833219,-150.0,0.00026611,2]
[393210050,1762321833228,-500.0,0.00026611,2]
[393210051,1762321833237,-440.04,0.00026676,2]
[393210052,1762321833246,-500.0,0.0002674,2]
[393210053,1762321833255,-1283.4,0.00026859,2]
[393210054,1762321833264,-477.76462643,0.00027,3]
[393210055,1762321833273,-1283.4,0.00027133,2]
[393210056,1762321833282,-300.0,0.00027397,2]
[393210057,1762321833291,-1283.4,0.00027407,14]
[393210058,1762321833300,-1283.4,0.00027681,14]
[393210059,1762321833309,-1283.4,0.00027955,14]
[393210060,1762321833319,-19590.82,0.00028174,2]
[393210061,1762321833328,-1283.4,0.00028229,14]
[393210062,1762321833337,-4070.2655,0.00028355,2]
[393210063,1762321833346,-732.5195,0.00028355,2]
[393210064,1762321833355,-6641.826,0.00028355,2]
[393210065,1762321833364,-1674.69935732,0.00028355,2]
[393210066,1762321833373,-15867.26,0.00028405,2]
[393210067,1762321833383,-150.0,0.00028415,2]
[393210068,1762321833392,-5666.53869765,0.00028455,2]
[393210069,1762321833401,-1283.4,0.00028503,14]
[393210070,1762321833410,-1283.4,0.00028777,14]
[393210071,1762321833419,-186.18,0.00028951,2]
[393210072,1762321833430,-300.46,0.00028951,2]
[393210073,1762321833439,-1283.4,0.00029051,14]
[393210074,1762321833450,-1283.4,0.00029325,14]
[393210075,1762321833459,-200.0,0.0002946,5]
[393210076,1762321833469,-1283.4,0.00029599,14]
[393210077,1762321833479,-1283.41529373,0.00029873,14]
[393210078,1762321833488,-500.0,0.0002995,5]
[393210079,1762321833497,-500.0,0.0002995,5]
[393210080,1762321833507,-500.0,0.0002995,5]
[393210081,1762321833516,-500.0,0.0002995,5]
[393210082,1762321833525,-500.0,0.0002995,5]
[393210083,1762321833535,-267.95765214,0.0003,14]
[393210084,1762321833544,-300.0,0.00030145,5]
[393210085,1762321833554,-1000.0,0.00030498,5]
[393210086,1762321833563,-1000.0,0.00030498,5]
[393210087,1762321833572,-1000.0,0.00030498,5]
[393210088,1762321833581,-1000.0,0.00030498,5]
[393210089,1762321833590,-1000.0,0.00030498,5]
[393210090,1762321833600,-329.03,0.00030685,30]
[393210091,1762321833609,-166.66,0.00030801,30]
[393210092,1762321833618,-500.0,0.00030973,5]
[393210093,1762321833627,-504.93761399,0.00030973,5]
[393210094,1762321833636,-39055.44,0.00030997,2]
[393210095,1762321833648,-200.0,0.00031,7]
[393210096,1762321833658,-335.28782789,0.00031046,5]
[393210097,1762321833667,-1500.0,0.00031046,5]
[393210098,1762321833677,-1300.08700211,0.00031046,5]
[393210099,1762321833687,-1500.0,0.00031046,5]
[393210100,1762321833696,-289.26333301,0.00031046,5]
[393210101,1762321833705,-11859.28435876,0.00031077,2]
[393210102,1762321833714,-152.0,0.00031177,3]
[393210103,1762321833724,-500.0,0.00031342,2]
[393210104,1762321833734,-379.447,0.00031395,29]
[393210105,1762321833744,-6459.25,0.00031395,29]
[393210106,1762321833753,-166.66,0.0003145,30]
[393210107,1762321833763,-502.7350988,0.00031521,5]
[393210108,1762321833772,-2000.0,0.00031594,5]
[393210109,1762321833781,-2000.0,0.00031594,5]
[393210110,1762321833790,-9955.0,0.00031639,2]
[393210111,1762321833799,-1334.74,0.00031749,2]
[393210112,1762321833808,-11859.28435875,0.00031867,2]
[393210113,1762321833818,-486.65939576,0.00031998,2]
[393210114,1762321833827,-166.66,0.00032098,30]
[393210115,1762321833836,-503.08224355,0.00032142,5]
[393210116,1762321833845,-1017.24613966,0.00032142,5]
[393210117,1762321833854,-2000.0,0.000323,2]
[393210118,1762321833864,-450.0,0.00032318,7]
[393210119,1762321833873,-375.0,0.00032318,7]
[393210120,1762321833882,-375.0,0.00032455,7]
[393210121,1762321833891,-11859.28435875,0.00032657,2]
[393210122,1762321833900,-166.66,0.00032747,30]
[393210123,1762321833909,-150.0,0.00032802,2]
[393210124,1762321833919,-753.44,0.00032802,120]
[393210125,1762321833928,-486.65939574,0.00032882,2]
[393210126,1762321833937,-2000.0,0.00032883,2]
[393210127,1762321833947,-440.04,0.00033165,2]
[393210128,1762321833956,-166.66,0.00033395,30]
[393210129,1762321833965,-401.11871081,0.00033446,2]
[393210130,1762321833974,-337.60670025,0.00033446,7]
[393210131,1762321833984,-500.0,0.00033446,7]
[393210132,1762321833997,-500.0,0.00033446,7]
[393210133,1762321834006,-500.0,0.00033446,7]
[393210134,1762321834016,-500.0,0.00033446,7]
[393210135,1762321834026,-379.73132096,0.00033446,7]
[393210136,1762321834035,-11859.28435875,0.00033447,2]
[393210137,1762321834044,-150.0,0.000335,5]
[393210138,1762321834053,-166.66,0.00034044,30]
[393210139,1762321834064,-250.0,0.00034048,5]
[393210140,1762321834074,-152.0,0.0003413,4]
[393210141,1762321834083,-1970.04132143,0.00034166,2]
[393210142,1762321834093,-11859.28435875,0.00034237,2]
[393210143,1762321834102,-500.0,0.00034481,7]
[393210144,1762321834111,-350.0,0.00034596,5]
[393210145,1762321834120,-11859.28435875,0.00035027,2]
[393210146,1762321834130,-531.80242415,0.00035144,5]
[393210147,1762321834139,-9626.29,0.00035189,2]
[393210148,1762321834148,-11859.28435875,0.00035817,2]
[393210149,1762321834157,-3192.00062776,0.00035825,2]
[393210150,1762321834167,-1000.0,0.00035827,7]
[393210151,1762321834176,-1000.0,0.00035864,7]
[393210152,1762321834186,-181.24451209,0.00036,2]
[393210153,1762321834195,-2000.0,0.00036,2]
[393210154,1762321834205,-150.0,0.00036004,2]
[393210155,1762321834214,-150.0,0.00036004,2]
[393210156,1762321834223,-500.0,0.00036004,2]
[393210157,1762321834233,-500.0,0.00036004,2]
[393210158,1762321834242,-150.0,0.00036004,2]
[393210159,1762321834251,-433.0,0.00036004,2]
[393210160,1762321834260,-419.0,0.00036004,2]
[393210161,1762321834271,-150.0,0.00036004,2]
[393210162,1762321834280,-221.85,0.00036017,2]
[393210163,1762321834290,-213.406102,0.00036056,2]
[393210164,1762321834299,-1300.0,0.00036096,7]
[393210165,1762321834308,-150.80752017,0.00036141,2]
[393210166,1762321834317,-152.10989267,0.00036141,2]
[393210167,1762321834326,-603.09765029,0.00036141,2]
[393210168,1762321834335,-500.0,0.00036141,2]
[393210169,1762321834344,-150.0,0.00036141,2]
[393210170,1762321834354,-433.0,0.00036141,2]
[393210171,1762321834363,-419.0,0.00036141,2]
[393210172,1762321834372,-231.56336037,0.00036141,2]
[393210173,1762321834381,-1000.0,0.00036164,120]
[393210174,1762321834391,-211.91475997,0.000362,5]
[393210175,1762321834400,-500.0,0.000362,5]
[393210176,1762321834409,-213.406102,0.00036232,2]
[393210177,1762321834419,-500.0,0.00036278,2]
[393210178,1762321834428,-155.40872525,0.00036278,2]
[393210179,1762321834437,-433.0,0.00036278,2]
[393210180,1762321834446,-419.0,0.00036278,2]
[393210181,1762321834455,-1000.0,0.00036279,7]
[393210182,1762321834464,-326.50782396,0.0003629,3]
[393210183,1762321834474,-2801.384,0.000363,2]
[393210184,1762321834483,-607.0,0.000363,2]
[393210185,1762321834493,-574.0,0.000363,2]
[393210186,1762321834502,-1315.0,0.000363,2]
[393210187,1762321834512,-820.0,0.000363,2]
[393210188,1762321834522,-1595.0,0.000363,2]
[393210189,1762321834531,-905.0,0.000363,2]
[393210190,1762321834540,-868.941,0.000363,2]
[393210191,1762321834550,-1272.0,0.000363,2]
[393210192,1762321834559,-812.0,0.000363,2]
[393210193,1762321834568,-2141.0,0.000363,2]
[393210194,1762321834577,-6473.0,0.000363,2]
[393210195,1762321834587,-904.8518477,0.00036315,2]
[393210196,1762321834596,-1300.0,0.0003637,7]
[393210197,1762321834605,-500.0,0.0003637,7]
[393210198,1762321834615,-161.13202481,0.00036384,30]
[393210199,1762321834624,-1000.0,0.00036386,7]
[393210200,1762321834633,-588.29,0.00036406,2]
[393210201,1762321834643,-500.0,0.00036406,120]
[393210202,1762321834652,-5888.0,0.00036407,7]
[393210203,1762321834661,-500.0,0.00036415,2]
[393210204,1762321834670,-433.0,0.00036415,2]
[393210205,1762321834679,-419.0,0.00036415,2]
[393210206,1762321834689,-1000.0,0.00036438,120]
[393210207,1762321834698,-213.406102,0.00036445,2]
[393210208,1762321834707,-585.4579924,0.00036472,30]
[393210209,1762321834716,-500.0,0.00036472,120]
[393210210,1762321834726,-199.0,0.00036472,7]
[393210211,1762321834735,-5888.0,0.00036473,7]
[393210212,1762321834744,-904.85184766,0.00036523,2]
[393210213,1762321834754,-326.50782396,0.00036542,4]
[393210214,1762321834763,-500.0,0.00036552,2]
[393210215,1762321834772,-433.0,0.00036552,2]
[393210216,1762321834781,-419.0,0.00036552,2]
[393210217,1762321834791,-11859.28435875,0.00036607,2]
[393210218,1762321834800,-890.79556483,0.00036607,2]
[393210219,1762321834810,-161.13202481,0.00036658,30]
[393210220,1762321834819,-500.0,0.00036689,2]
[393210221,1762321834828,-433.0,0.00036689,2]
[393210222,1762321834837,-419.0,0.00036689,2]
[393210223,1762321834847,-500.0,0.000367,5]
[393210224,1762321834856,-1000.0,0.00036712,120]
[393210225,1762321834865,-904.85184766,0.00036731,2]
[393210226,1762321834874,-1000.0,0.00036736,7]
[393210227,1762321834883,-150.0,0.00036739,7]
[393210228,1762321834892,-161.1320248,0.00036795,30]
[393210229,1762321834901,-161.1320248,0.00036795,30]
[393210230,1762321834911,-161.1320248,0.00036795,30]
[393210231,1762321834921,-161.13202481,0.00036795,30]
[393210232,1762321834930,-500.0,0.000368,5]
[393210233,1762321834939,-500.0,0.00036826,2]
[393210234,1762321834948,-433.0,0.00036826,2]
[393210235,1762321834958,-419.0,0.00036826,2]
[393210236,1762321834967,-326.50782396,0.0003687,4]
[393210237,1762321834976,-150.0,0.00036878,2]
[393210238,1762321834985,-150.0,0.00036878,2]
[393210239,1762321834999,-150.0,0.00036878,2]
[393210240,1762321835009,-150.0,0.00036878,2]
[393210241,1762321835018,-150.0,0.00036878,2]
[393210242,1762321835027,-6485.73220892,0.0003688,2]
[393210243,1762321835038,-150.0,0.00036887,2]
[393210244,1762321835048,-150.0,0.00036887,2]
[393210245,1762321835057,-309.96,0.00036887,2]
[393210246,1762321835066,-300.0,0.00036887,2]
[393210247,1762321835075,-150.0,0.00036887,2]
[393210248,1762321835084,-150.0,0.00036887,2]
[393210249,1762321835093,-219.7147,0.00036888,7]
[393210250,1762321835102,-753.44,0.00036903,120]
[393210251,1762321835111,-161.13202481,0.00036904,30]
[393210252,1762321835120,-213.406102,0.00036912,2]
[393210253,1762321835301,-1300.0,0.00036918,7]
[393210254,1762321835311,-904.85184766,0.00036939,2]
[393210255,1762321835321,-890.79556483,0.00036944,2]
[393210256,1762321835330,-150.0,0.00036957,7]
[393210257,1762321835340,-500.0,0.00036963,2]
[393210258,1762321835349,-433.0,0.00036963,2]
[393210259,1762321835358,-419.0,0.00036963,2]
[393210260,1762321835368,-150.0,0.00036975,5]
[393210261,1762321835378,-500.0,0.00036975,5]
[393210262,1762321835387,-1000.0,0.00036979,7]
[393210263,1762321835397,-1000.0,0.00036986,120]
[393210264,1762321835406,-1632.5391198,0.0003699,4]
[393210265,1762321835415,-606.91804468,0.00036998,2]
[393210266,1762321835424,-500.0,0.00036999,7]
[393210267,1762321835433,-180.0,0.00037,30]
[393210268,1762321835443,-793.85528858,0.00037,3]
[393210269,1762321835453,-748.6579957,0.00037,120]
[393210270,1762321835462,-1478.0585,0.00037,2]
[393210271,1762321835472,-2000.0,0.00037,2]
[393210272,1762321835481,-2000.0,0.00037,2]
[393210273,1762321835491,-2000.0,0.00037,2]
[393210274,1762321835500,-100000.0,0.00037,40]
[393210275,1762321835509,-1000.0,0.00037045,7]
[393210276,1762321835520,-890.79556483,0.00037065,2]
[393210277,1762321835529,-213.406102,0.00037067,2]
[393210278,1762321835539,-219.45729136,0.00037074,7]
[393210279,1762321835548,-152.0,0.00037084,5]
[393210280,1762321835558,-2000.0,0.00037099,2]
[393210281,1762321835567,-222.30061184,0.000371,2]
[393210282,1762321835576,-433.0,0.000371,2]
[393210283,1762321835586,-419.0,0.000371,2]
[393210284,1762321835595,-800.0,0.000371,13]
[393210285,1762321835605,-904.85184766,0.00037147,2]
[393210286,1762321835615,-161.13202481,0.00037178,30]
[393210287,1762321835624,-161.1320248,0.00037178,30]
[393210288,1762321835634,-161.1320248,0.00037178,30]
[393210289,1762321835643,-161.1320248,0.00037178,30]
[393210290,1762321835653,-161.13202481,0.00037178,30]
[393210291,1762321835663,-326.50782396,0.00037186,4]
[393210292,1762321835674,-1300.0,0.00037192,7]
[393210293,1762321835682,-500.0,0.00037192,7]
[393210294,1762321835691,-1600.0,0.000372,13]
[393210295,1762321835700,-5888.0,0.00037206,7]
[393210296,1762321835710,-477.76462643,0.00037206,7]
[393210297,1762321835718,-433.0,0.00037237,2]
[393210298,1762321835728,-419.0,0.00037237,2]
[393210299,1762321835738,-1000.0,0.00037248,5]
[393210300,1762321835748,-1000.0,0.0003726,120]
[393210301,1762321835758,-500.0,0.0003728,30]
[393210302,1762321835767,-1000.0,0.00037286,2]
[393210303,1762321835777,-2625.83575073,0.00037287,9]
[393210304,1762321835786,-500.0,0.00037288,7]
[393210305,1762321835795,-500.0,0.00037288,7]
[393210306,1762321835805,-500.0,0.00037288,7]
[393210307,1762321835815,-500.0,0.00037288,7]
[393210308,1762321835824,-500.0,0.00037288,7]
[393210309,1762321835833,-500.0,0.00037288,7]
[393210310,1762321835842,-500.0,0.00037288,7]
[393210311,1762321835851,-500.0,0.00037288,7]
[393210312,1762321835860,-500.0,0.00037288,7]
[393210313,1762321835870,-500.0,0.00037288,7]
[393210314,1762321835879,-500.0,0.00037288,7]
[393210315,1762321835888,-500.0,0.00037288,7]
[393210316,1762321835897,-500.0,0.00037288,7]
[393210317,1762321835906,-500.0,0.00037288,7]
[393210318,1762321835916,-414.31,0.00037288,7]
[393210319,1762321835925,-215.02,0.00037288,7]
[393210320,1762321835934,-500.0,0.00037288,7]
[393210321,1762321835943,-500.0,0.00037288,7]
[393210322,1762321835952,-500.0,0.00037288,7]
[393210323,1762321835962,-500.0,0.00037288,7]
[393210324,1762321835971,-500.0,0.00037288,7]
[393210325,1762321835979,-500.0,0.00037288,7]
[393210326,1762321835990,-890.79556483,0.00037296,2]
[393210327,1762321836001,-2400.0,0.000373,13]
[393210328,1762321836010,-9984.8933,0.00037317,2]
[393210329,1762321836019,-150.0,0.00037333,7]
[393210330,1762321836030,-904.85184766,0.00037356,2]
[393210331,1762321836039,-433.0,0.00037374,2]
[393210332,1762321836049,-419.0,0.00037374,2]
[393210333,1762321836058,-213.406102,0.00037383,2]
[393210334,1762321836069,-11859.28435875,0.00037397,2]
[393210335,1762321836078,-1550.0,0.000374,7]
[393210336,1762321836087,-3200.0,0.000374,13]
[393210337,1762321836096,-1000.0,0.00037417,2]
[393210338,1762321836106,-273.74139292,0.00037443,7]